fUSD/lending_fUSD_20250812
["ID","MTS","AMOUNT","RATE_DAILY","PERIOD"]
[378815887,1755034272106,-400.0,0.00049589,120]
[378815888,1755034272115,-400.0,0.00049589,120]
[378815889,1755034272124,-505.23,0.00049589,120]
[378815890,1755034272134,-647.3,0.00049589,120]
[378815891,1755034272143,-963.31,0.00049589,120]
[378815892,1755034272152,-460.0,0.00049589,120]
[378815893,1755034272162,-554.23,0.00049589,120]
[378815894,1755034272172,-400.0,0.00049589,120]
[378815895,1755034272183,-400.0,0.00049589,120]
[378815896,1755034272193,-400.0,0.00049589,120]
[378815897,1755034272203,-400.0,0.00049589,120]
[378815898,1755034272212,-400.0,0.00049589,120]
[378815899,1755034272222,-460.0,0.00049589,120]
[378815900,1755034272232,-400.0,0.00049589,120]
[378815901,1755034272242,-400.0,0.00049589,120]
[378815902,1755034272254,-400.0,0.00049589,120]
[378815903,1755034272263,-400.0,0.00049589,120]
[378815904,1755034272273,-1178.67,0.00049589,120]
[378815905,1755034272283,-619.65,0.00049589,120]
[378815906,1755034272292,-488.65,0.00049589,120]
[378815907,1755034272302,-400.0,0.00049589,120]
[378815908,1755034272311,-400.0,0.00049589,120]
[378815909,1755034272321,-1008.46,0.00049589,120]
[378815910,1755034272330,-400.0,0.00049589,120]
[378815911,1755034272339,-400.0,0.00049589,120]
[378815912,1755034272348,-577.86,0.00049589,120]
[378815913,1755034272358,-400.0,0.00049589,120]
[378815914,1755034272367,-1268.39,0.00049589,120]
[378815915,1755034272376,-400.0,0.00049589,120]
[378815916,1755034272386,-541.97,0.00049589,120]
[378815917,1755034272395,-627.63,0.00049589,120]
[378815918,1755034272404,-400.0,0.00049589,120]
[378815919,1755034272414,-400.0,0.00049589,120]
[378815920,1755034272423,-400.0,0.00049589,120]
[378815921,1755034272432,-400.0,0.00049589,120]
[378815922,1755034272441,-400.0,0.00049589,120]
[378815923,1755034272451,-400.0,0.00049589,120]
[378815924,1755034272461,-400.0,0.00049589,120]
[378815925,1755034272470,-400.0,0.00049589,120]
[378815926,1755034272480,-483.13,0.00049589,120]
[378815927,1755034272490,-601.7,0.00049589,120]
[378815928,1755034272502,-400.0,0.00049589,120]
[378815929,1755034272512,-1179.06,0.00049589,120]
[378815930,1755034272521,-400.0,0.00049589,120]
[378815931,1755034272531,-400.0,0.00049589,120]
[378815932,1755034272541,-619.29,0.00049589,120]
[378815933,1755034272550,-400.0,0.00049589,120]
[378815934,1755034272559,-400.0,0.00049589,120]
[378815935,1755034272568,-400.0,0.00049589,120]
[378815936,1755034272578,-400.0,0.00049589,120]
[378815937,1755034272587,-400.0,0.00049589,120]
[378815938,1755034272596,-400.0,0.00049589,120]
[378815939,1755034272605,-400.0,0.00049589,120]
[378815940,1755034272614,-400.0,0.00049589,120]
[378815941,1755034272624,-448.34,0.00049589,120]
[378815942,1755034272634,-400.0,0.00049589,120]
[378815943,1755034272643,-400.0,0.00049589,120]
[378815944,1755034272656,-400.0,0.00049589,120]
[378815945,1755034272669,-526.77,0.00049589,120]
[378815946,1755034272680,-400.0,0.00049589,10]
[378815947,1755034272689,-400.0,0.00049589,120]
[378815948,1755034272698,-400.0,0.00049589,120]
[378815949,1755034272708,-400.0,0.00049589,120]
[378815950,1755034272717,-400.0,0.00049589,120]
[378815951,1755034272727,-854.46,0.00049589,120]
[378815952,1755034272736,-400.0,0.00049589,120]
[378815953,1755034272745,-408.6,0.00049589,120]
[378815954,1755034272757,-400.0,0.00049589,120]
[378815955,1755034272766,-1142.72,0.00049589,120]
[378815956,1755034272776,-400.0,0.00049589,120]
[378815957,1755034272786,-400.0,0.00049589,120]
[378815958,1755034272795,-401.43545826,0.00049589,120]
[378815959,1755034272804,-400.0,0.00049589,120]
[378815960,1755034272814,-400.0,0.00049589,120]
[378815961,1755034272824,-400.0,0.00049589,120]
[378815962,1755034272833,-520.0,0.00049589,120]
[378815963,1755034272843,-400.0,0.00049589,120]
[378815964,1755034272852,-400.0,0.00049589,120]
[378815965,1755034272861,-400.0,0.00049589,120]
[378815966,1755034272871,-1210.89,0.00049589,120]
[378815967,1755034272881,-520.63,0.00049589,120]
[378815968,1755034272890,-400.0,0.00049589,120]
[378815969,1755034272900,-829.23,0.00049589,120]
[378815970,1755034272909,-400.0,0.00049589,120]
[378815971,1755034272919,-400.0,0.00049589,120]
[378815972,1755034272928,-400.0,0.00049589,120]
[378815973,1755034272937,-400.0,0.00049589,120]
[378815974,1755034272947,-466.5,0.00049589,120]
[378815975,1755034272956,-400.0,0.00049589,120]
[378815976,1755034272967,-400.0,0.00049589,120]
[378815977,1755034272976,-400.0,0.00049589,120]
[378815978,1755034272985,-906.16,0.00049589,120]
[378815979,1755034272995,-567.08,0.00049589,120]
[378815980,1755034273005,-400.0,0.00049589,120]
[378815981,1755034273015,-534.01,0.00049589,120]
[378815982,1755034273024,-400.0,0.00049589,120]
[378815983,1755034273035,-400.0,0.00049589,120]
[378815984,1755034273044,-400.0,0.00049589,120]
[378815985,1755034273053,-400.0,0.00049589,120]
[378815986,1755034273063,-552.89,0.00049589,120]
[378815987,1755034273073,-732.53,0.00049589,120]
[378815988,1755034273082,-400.0,0.00049589,120]
[378815989,1755034273091,-592.32,0.00049589,120]
[378815990,1755034273100,-400.0,0.00049589,120]
[378815991,1755034273109,-400.0,0.00049589,120]
[378815992,1755034273118,-400.0,0.00049589,120]
[378815993,1755034273127,-400.0,0.00049589,120]
[378815994,1755034273138,-400.0,0.00049589,120]
[378815995,1755034273147,-400.0,0.00049589,120]
[378815996,1755034273156,-400.0,0.00049589,120]
[378815997,1755034273166,-460.0,0.00049589,120]
[378815998,1755034273175,-400.0,0.00049589,120]
[378815999,1755034273184,-400.0,0.00049589,120]
[378816000,1755034273193,-400.0,0.00049589,120]
[378816001,1755034273202,-546.46134028,0.00049589,2]
[378816002,1755034273211,-1188.74,0.00049589,120]
[378816003,1755034273220,-400.0,0.00049589,120]
[378816004,1755034273229,-460.0,0.00049589,120]
[378816005,1755034273238,-400.0,0.00049589,120]
[378816006,1755034273247,-400.0,0.00049589,120]
[378816007,1755034273256,-400.0,0.00049589,120]
[378816008,1755034273266,-400.0,0.00049589,120]
[378816009,1755034273275,-841.64,0.00049589,120]
[378816010,1755034273284,-173.79247194,0.00049589,120]
[378816011,1755034273293,-564.69,0.00049589,120]
[378816012,1755034273304,-400.0,0.00049589,120]
[378816013,1755034273316,-400.0,0.00049589,120]
[378816014,1755034273326,-400.0,0.00049589,120]
[378816015,1755034273337,-400.0,0.00049589,120]
[378816016,1755034273346,-400.0,0.00049589,120]
[378816017,1755034273355,-400.0,0.00049589,60]
[378816018,1755034273365,-601.24,0.00049589,120]
[378816019,1755034273374,-400.0,0.00049589,120]
[378816020,1755034273383,-400.0,0.00049589,120]
[378816021,1755034273392,-400.0,0.00049589,120]
[378816022,1755034273401,-887.94,0.00049589,120]
[378816023,1755034273411,-400.0,0.00049589,120]
[378816024,1755034273421,-320.43771771,0.00049589,7]
[378816025,1755034273430,-400.0,0.00049589,120]
[378816026,1755034273439,-407.15,0.00049589,120]
[378816027,1755034273448,-520.0,0.00049589,120]
[378816028,1755034273458,-827.35,0.00049589,120]
[378816029,1755034273467,-400.0,0.00049589,120]
[378816030,1755034273476,-400.0,0.00049589,120]
[378816031,1755034273485,-520.0,0.00049589,120]
[378816032,1755034273495,-400.0,0.00049589,120]
[378816033,1755034273505,-400.0,0.00049589,120]
[378816034,1755034273515,-1262.79,0.00049589,120]
[378816035,1755034273524,-400.0,0.00049589,120]
[378816036,1755034273533,-400.0,0.00049589,120]
[378816037,1755034273542,-471.12,0.00049589,120]
[378816038,1755034273551,-400.0,0.00049589,120]
[378816039,1755034273561,-400.0,0.00049589,120]
[378816040,1755034273570,-400.0,0.00049589,120]
[378816041,1755034273579,-901.57,0.00049589,120]
[378816042,1755034273588,-653.27,0.00049589,120]
[378816043,1755034273598,-1056.6,0.00049589,120]
[378816044,1755034273607,-400.0,0.00049589,120]
[378816045,1755034273616,-400.0,0.00049589,120]
[378816046,1755034273625,-528.20398216,0.00049589,120]
[378816047,1755034273635,-211.25961782,0.00049589,120]
[378816048,1755034273643,-592.29,0.00049589,120]
[378816049,1755034273654,-400.0,0.00049589,120]
[378816050,1755034273666,-400.0,0.00049589,120]
[378816051,1755034273676,-400.0,0.00049589,120]
[378816052,1755034273685,-400.0,0.00049589,120]
[378816053,1755034273696,-400.0,0.00049589,120]
[378816054,1755034273705,-923.22,0.00049589,120]
[378816055,1755034273714,-400.0,0.00049589,120]
[378816056,1755034273724,-400.0,0.00049589,120]
[378816057,1755034273733,-400.0,0.00049589,120]
[378816058,1755034273743,-539.24,0.00049589,120]
[378816059,1755034273754,-400.0,0.00049589,120]
[378816060,1755034273763,-400.0,0.00049589,120]
[378816061,1755034273773,-400.0,0.00049589,120]
[378816062,1755034273783,-1056.3,0.00049589,120]
[378816063,1755034273792,-400.0,0.00049589,120]
[378816064,1755034273802,-456.15,0.00049589,120]
[378816065,1755034273811,-401.76004311,0.00049589,120]
[378816066,1755034273820,-655.18,0.00049589,120]
[378816067,1755034273829,-400.0,0.00049589,120]
[378816068,1755034273839,-400.0,0.00049589,120]
[378816069,1755034273847,-400.0,0.00049589,120]
[378816070,1755034273857,-634.8369156,0.00049589,120]
[378816071,1755034274480,-937.7530844,0.00049589,120]
[378816072,1755034274489,-400.0,0.00049589,120]
[378816073,1755034274499,-400.0,0.00049589,120]
[378816074,1755034274508,-975.01,0.00049589,120]
[378816075,1755034274517,-400.0,0.00049589,7]
[378816076,1755034274527,-400.0,0.00049589,120]
[378816077,1755034274536,-295.16,0.00049589,120]
[378816078,1755034274545,-189.61650969,0.00049589,120]
[378816079,1755034274554,-400.0,0.00049589,120]
[378816080,1755034274564,-400.0,0.00049589,120]
[378816081,1755034274573,-400.0,0.00049589,120]
[378816082,1755034274582,-1634.57,0.00049589,120]
[378816083,1755034274591,-400.0,0.00049589,120]
[378816084,1755034274600,-400.0,0.00049589,120]
[378816085,1755034274609,-1491.61,0.00049589,120]
[378816086,1755034274618,-400.0,0.00049589,120]
[378816087,1755034274628,-462.73,0.00049589,120]
[378816088,1755034274637,-400.0,0.00049589,120]
[378816089,1755034274646,-400.0,0.00049589,120]
[378816090,1755034274655,-400.0,0.00049589,120]
[378816091,1755034274671,-406.56,0.00049589,120]
[378816092,1755034274680,-400.0,0.00049589,120]
[378816093,1755034274690,-400.0,0.00049589,120]
[378816094,1755034274701,-1664.76,0.00049589,120]
[378816095,1755034274711,-1478.84,0.00049589,120]
[378816096,1755034274720,-585.08,0.00049589,120]
[378816097,1755034274729,-461.8442785,0.00049589,120]
[378816098,1755034274740,-1057.22,0.00049589,120]
[378816099,1755034274749,-1674.59,0.00049589,120]
[378816100,1755034274759,-460.0,0.00049589,120]
[378816101,1755034274769,-400.0,0.00049589,120]
[378816102,1755034274778,-602.41,0.00049589,120]
[378816103,1755034274787,-477.57,0.00049589,120]
[378816104,1755034274796,-1517.47,0.00049589,120]
[378816105,1755034274806,-400.0,0.00049589,120]
[378816106,1755034274815,-529.21,0.00049589,120]
[378816107,1755034274824,-400.0,0.00049589,120]
[378816108,1755034274834,-400.0,0.00049589,120]
[378816109,1755034274843,-576.1,0.00049589,120]
[378816110,1755034274853,-400.0,0.00049589,120]
[378816111,1755034274863,-598.47,0.00049589,120]
[378816112,1755034274872,-219.33422463,0.00049589,120]
[378816113,1755034274882,-400.0,0.00049589,120]
[378816114,1755034274891,-2451.82,0.00049589,120]
[378816115,1755034274900,-419.27,0.00049589,120]
[378816116,1755034274909,-400.0,0.00049589,120]
[378816117,1755034274918,-1219.05,0.00049589,120]
[378816118,1755034274927,-400.0,0.00049589,120]
[378816119,1755034274936,-1883.37,0.00049589,120]
[378816120,1755034274946,-516.89,0.00049589,120]
[378816121,1755034274955,-400.0,0.00049589,120]
[378816122,1755034274964,-400.0,0.00049589,120]
[378816123,1755034274973,-16937.28,0.00049589,120]
[378816124,1755034274982,-400.0,0.00049589,120]
[378816125,1755034274991,-400.0,0.00049589,120]
[378816126,1755034275000,-973.52,0.00049589,120]
[378816127,1755034275010,-1127.94,0.00049589,120]
[378816128,1755034275020,-561.96,0.00049589,120]
[378816129,1755034275030,-238.08019706,0.00049589,120]
[378816130,1755034275039,-687.74,0.00049589,120]
[378816131,1755034275049,-400.0,0.00049589,120]
[378816132,1755034275058,-500.0,0.00049589,60]
[378816133,1755034275068,-274.8423752,0.00049589,120]
[378816134,1755034275077,-520.0,0.00049589,120]
[378816135,1755034275086,-491.29,0.00049589,120]
[378816136,1755034275096,-421.12,0.00049589,120]
[378816137,1755034275105,-401.39595995,0.00049589,120]
[378816138,1755034275115,-1302.81,0.00049589,120]
[378816139,1755034275124,-400.0,0.00049589,120]
[378816140,1755034275133,-400.0,0.00049589,120]
[378816141,1755034275143,-1624.83,0.00049589,120]
[378816142,1755034275153,-400.0,0.00049589,120]
[378816143,1755034275162,-460.0,0.00049589,120]
[378816144,1755034275172,-400.0,0.00049589,120]
[378816145,1755034275181,-400.0,0.00049589,120]
[378816146,1755034275191,-400.0,0.00049589,120]
[378816147,1755034275200,-400.0,0.00049589,120]
[378816148,1755034275209,-151.0,0.00049589,120]
[378816149,1755034275219,-400.0,0.00049589,120]
[378816150,1755034275228,-589.79,0.00049589,120]
[378816151,1755034275237,-673.79,0.00049589,120]
[378816152,1755034275247,-1216.08,0.00049589,120]
[378816153,1755034275259,-400.0,0.00049589,120]
[378816154,1755034275268,-870.7,0.00049589,120]
[378816155,1755034275277,-1696.1,0.00049589,120]
[378816156,1755034275287,-910.32,0.00049589,120]
[378816157,1755034275297,-400.0,0.00049589,120]
[378816158,1755034275307,-1000.83,0.00049589,120]
[378816159,1755034275317,-400.0,0.00049589,120]
[378816160,1755034275328,-400.0,0.00049589,120]
[378816161,1755034275337,-1237.03,0.00049589,120]
[378816162,1755034275347,-400.0,0.00049589,120]
[378816163,1755034275356,-400.0,0.00049589,120]
[378816164,1755034275365,-400.0,0.00049589,120]
[378816165,1755034275375,-400.0,0.00049589,120]
[378816166,1755034275384,-400.0,0.00049589,120]
[378816167,1755034275394,-834.02,0.00049589,120]
[378816168,1755034275403,-400.0,0.00049589,120]
[378816169,1755034275414,-445.15,0.00049589,120]
[378816170,1755034275423,-400.0,0.00049589,120]
[378816171,1755034275433,-461.17234268,0.00049589,120]
[378816172,1755034275442,-1708.87,0.00049589,120]
[378816173,1755034275451,-400.0,0.00049589,120]
[378816174,1755034275461,-400.0,0.00049589,120]
[378816175,1755034275470,-151.0,0.00049589,120]
[378816176,1755034275479,-400.0,0.00049589,120]
[378816177,1755034275488,-400.0,0.00049589,120]
[378816178,1755034275497,-1479.36,0.00049589,120]
[378816179,1755034275508,-460.0,0.00049589,120]
[378816180,1755034275518,-400.0,0.00049589,120]
[378816181,1755034275527,-425.4,0.00049589,120]
[378816182,1755034275536,-402.43404925,0.00049589,120]
[378816183,1755034275545,-1505.79,0.00049589,120]
[378816184,1755034275555,-210.200207,0.00049589,120]
[378816185,1755034275564,-496.31050565,0.00049589,120]
[378816186,1755034275573,-3347.85,0.00049589,120]
[378816187,1755034275582,-400.0,0.00049589,120]
[378816188,1755034275592,-1788.21,0.00049589,120]
[378816189,1755034275601,-714.21,0.00049589,120]
[378816190,1755034275610,-400.0,0.00049589,120]
[378816191,1755034275619,-3467.33,0.00049589,120]
[378816192,1755034275628,-1363.33,0.00049589,120]
[378816193,1755034275637,-400.0,0.00049589,120]
[378816194,1755034275646,-400.0,0.00049589,120]
[378816195,1755034275655,-400.0,0.00049589,120]
[378816196,1755034275670,-640.23,0.00049589,120]
[378816197,1755034275678,-400.0,0.00049589,120]
[378816198,1755034275688,-400.0,0.00049589,120]
[378816199,1755034275696,-400.0,0.00049589,120]
[378816200,1755034275706,-400.0,0.00049589,120]
[378816201,1755034275716,-400.0,0.00049589,120]
[378816202,1755034275724,-400.0,0.00049589,120]
[378816203,1755034275735,-2222.54,0.00049589,120]
[378816204,1755034275744,-400.0,0.00049589,120]
[378816205,1755034275754,-754.46,0.00049589,120]
[378816206,1755034275763,-865.67,0.00049589,120]
[378816207,1755034275772,-400.0,0.00049589,120]
[378816208,1755034275781,-400.0,0.00049589,120]
[378816209,1755034275790,-400.0,0.00049589,120]
[378816210,1755034275800,-636.9,0.00049589,120]
[378816211,1755034275809,-1425.75,0.00049589,120]
[378816212,1755034275818,-400.0,0.00049589,120]
[378816213,1755034275827,-402.46007729,0.00049589,120]
[378816214,1755034275836,-400.0,0.00049589,120]
[378816215,1755034275846,-400.0,0.00049589,120]
[378816216,1755034275856,-534.39,0.00049589,120]
[378816217,1755034275865,-1643.25,0.00049589,120]
[378816218,1755034275875,-400.0,0.00049589,120]
[378816219,1755034275884,-534.88,0.00049589,120]
[378816220,1755034275893,-863.95,0.00049589,120]
[378816221,1755034275902,-400.0,0.00049589,120]
[378816222,1755034275912,-516.35,0.00049589,120]
[378816223,1755034275921,-1204.59,0.00049589,120]
[378816224,1755034275930,-400.0,0.00049589,120]
[378816225,1755034275939,-362.67803379,0.00049589,120]
[378816226,1755034275948,-737.76,0.00049589,120]
[378816227,1755034275957,-400.0,0.00049589,120]
[378816228,1755034276145,-1507.09,0.00049589,120]
[378816229,1755034276154,-400.0,0.00049589,120]
[378816230,1755034276163,-400.0,0.00049589,120]
[378816231,1755034276171,-402.75908719,0.00049589,120]
[378816232,1755034276180,-522.9,0.00049589,120]
[378816233,1755034276189,-895.72,0.00049589,120]
[378816234,1755034276200,-400.0,0.00049589,120]
[378816235,1755034276209,-400.0,0.00049589,120]
[378816236,1755034276220,-400.0,0.00049589,120]
[378816237,1755034276230,-1000.0,0.00049589,120]
[378816238,1755034276240,-155.9996003,0.00049589,120]
[378816239,1755034276249,-1289.23,0.00049589,120]
[378816240,1755034276257,-151.0,0.00049589,120]
[378816241,1755034276266,-4221.1,0.00049589,120]
[378816242,1755034276275,-403.59996234,0.00049589,120]
[378816243,1755034276284,-584.46,0.00049589,120]
[378816244,1755034276293,-1543.76,0.00049589,120]
[378816245,1755034276302,-400.0,0.00049589,120]
[378816246,1755034276311,-151.0,0.00049589,120]
[378816247,1755034276320,-1031.87,0.00049589,120]
[378816248,1755034276329,-400.0,0.00049589,120]
[378816249,1755034276337,-400.0,0.00049589,120]
[378816250,1755034276346,-738.96,0.00049589,120]
[378816251,1755034276355,-520.0,0.00049589,120]
[378816252,1755034276365,-529.99,0.00049589,120]
[378816253,1755034276374,-726.41,0.00049589,120]
[378816254,1755034276383,-1056.36,0.00049589,120]
[378816255,1755034276392,-400.0,0.00049589,120]
[378816256,1755034276400,-400.0,0.00049589,120]
[378816257,1755034276409,-776.37,0.00049589,120]
[378816258,1755034276419,-891.05,0.00049589,120]
[378816259,1755034276428,-1136.97,0.00049589,120]
[378816260,1755034276437,-400.0,0.00049589,120]
[378816261,1755034276446,-400.0,0.00049589,120]
[378816262,1755034276455,-400.0,0.00049589,120]
[378816263,1755034276464,-400.0,0.00049589,120]
[378816264,1755034276473,-1071.16,0.00049589,120]
[378816265,1755034276483,-406.30905549,0.00049589,120]
[378816266,1755034276492,-883.02,0.00049589,120]
[378816267,1755034276503,-400.0,0.00049589,120]
[378816268,1755034276512,-610.61,0.00049589,120]
[378816269,1755034276522,-704.36,0.00049589,120]
[378816270,1755034276531,-2346.21,0.00049589,120]
[378816271,1755034276539,-460.0,0.00049589,120]
[378816272,1755034276549,-400.0,0.00049589,120]
[378816273,1755034276558,-400.0,0.00049589,120]
[378816274,1755034276567,-400.0,0.00049589,120]
[378816275,1755034276576,-400.0,0.00049589,120]
[378816276,1755034276586,-1513.39,0.00049589,120]
[378816277,1755034276595,-1185.65,0.00049589,120]
[378816278,1755034276603,-500.0,0.00049589,2]
[378816279,1755034276612,-151.0,0.00049589,120]
[378816280,1755034276622,-400.0,0.00049589,120]
[378816281,1755034276631,-445.83,0.00049589,120]
[378816282,1755034276640,-400.0,0.00049589,120]
[378816283,1755034276649,-400.0,0.00049589,120]
[378816284,1755034276659,-560.92,0.00049589,120]
[378816285,1755034276670,-711.39,0.00049589,120]
[378816286,1755034276680,-2027.29,0.00049589,120]
[378816287,1755034276689,-400.0,0.00049589,120]
[378816288,1755034276699,-400.0,0.00049589,120]
[378816289,1755034276709,-942.84,0.00049589,120]
[378816290,1755034276718,-401.75299637,0.00049589,120]
[378816291,1755034276728,-400.0,0.00049589,120]
[378816292,1755034276738,-1257.2,0.00049589,120]
[378816293,1755034276747,-1000.0,0.00049589,120]
[378816294,1755034276757,-400.0,0.00049589,120]
[378816295,1755034276767,-943.43,0.00049589,120]
[378816296,1755034276776,-400.0,0.00049589,120]
[378816297,1755034276785,-435.14,0.00049589,120]
[378816298,1755034276795,-400.0,0.00049589,120]
[378816299,1755034276804,-735.03,0.00049589,120]
[378816300,1755034276813,-517.37,0.00049589,120]
[378816301,1755034276823,-400.0,0.00049589,120]
[378816302,1755034276832,-356.08824628,0.00049589,120]
[378816303,1755034276842,-400.0,0.00049589,120]
[378816304,1755034276851,-400.0,0.00049589,120]
[378816305,1755034276861,-400.0,0.00049589,120]
[378816306,1755034276871,-400.0,0.00049589,120]
[378816307,1755034276880,-1186.86,0.00049589,120]
[378816308,1755034276889,-400.0,0.00049589,120]
[378816309,1755034276899,-1812.44,0.00049589,120]
[378816310,1755034276908,-520.0,0.00049589,120]
[378816311,1755034276917,-400.0,0.00049589,120]
[378816312,1755034276927,-1419.97,0.00049589,120]
[378816313,1755034276938,-400.0,0.00049589,120]
[378816314,1755034276948,-400.0,0.00049589,120]
[378816315,1755034276957,-400.0,0.00049589,120]
[378816316,1755034276967,-400.0,0.00049589,120]
[378816317,1755034276977,-680.78,0.00049589,120]
[378816318,1755034276989,-2778.07,0.00049589,120]
[378816319,1755034276999,-400.0,0.00049589,120]
[378816320,1755034277009,-400.0,0.00049589,120]
[378816321,1755034277019,-400.0,0.00049589,120]
[378816322,1755034277029,-400.0,0.00049589,120]
[378816323,1755034277039,-400.0,0.00049589,120]
[378816324,1755034277048,-400.0,0.00049589,120]
[378816325,1755034277057,-422.19,0.00049589,120]
[378816326,1755034277066,-400.0,0.00049589,120]
[378816327,1755034277076,-400.0,0.00049589,120]
[378816328,1755034277086,-243.77871317,0.00049589,120]
[378816329,1755034277095,-1717.21,0.00049589,120]
[378816330,1755034277105,-400.0,0.00049589,120]
[378816331,1755034277115,-397.38116193,0.00049589,120]
[378816332,1755034277125,-1362.28,0.00049589,120]
[378816333,1755034277135,-400.0,0.00049589,120]
[378816334,1755034277144,-1857.85,0.00049589,120]
[378816335,1755034277154,-403.79,0.00049589,120]
[378816336,1755034277163,-400.0,0.00049589,120]
[378816337,1755034277172,-400.0,0.00049589,120]
[378816338,1755034277181,-400.0,0.00049589,120]
[378816339,1755034277191,-759.74,0.00049589,120]
[378816340,1755034277200,-630.38,0.00049589,120]
[378816341,1755034277209,-400.0,0.00049589,120]
[378816342,1755034277218,-400.0,0.00049589,120]
[378816343,1755034277227,-730.18,0.00049589,120]
[378816344,1755034277235,-3092.44,0.00049589,120]
[378816345,1755034277246,-3473.76,0.00049589,120]
[378816346,1755034277255,-400.0,0.00049589,120]
[378816347,1755034277263,-400.0,0.00049589,120]
[378816348,1755034277272,-400.0,0.00049589,120]
[378816349,1755034277282,-460.0,0.00049589,120]
[378816350,1755034277291,-400.0,0.00049589,120]
[378816351,1755034277300,-437.57,0.00049589,120]
[378816352,1755034277308,-3227.45,0.00049589,120]
[378816353,1755034277317,-151.0,0.00049589,120]
[378816354,1755034277327,-444.54,0.00049589,120]
[378816355,1755034277336,-1017.27,0.00049589,120]
[378816356,1755034277345,-829.51,0.00049589,120]
[378816357,1755034277354,-373.62840908,0.00049589,120]
[378816358,1755034277363,-400.0,0.00049589,120]
[378816359,1755034277372,-400.0,0.00049589,120]
[378816360,1755034277380,-400.0,0.00049589,120]
[378816361,1755034277390,-400.0,0.00049589,120]
[378816362,1755034277399,-1537.15,0.00049589,120]
[378816363,1755034277408,-400.0,0.00049589,120]
[378816364,1755034277417,-400.0,0.00049589,120]
[378816365,1755034277426,-777.1,0.00049589,120]
[378816366,1755034277435,-400.0,0.00049589,120]
[378816367,1755034277445,-537.14,0.00049589,120]
[378816368,1755034277455,-400.0,0.00049589,120]
[378816369,1755034277465,-400.0,0.00049589,120]
[378816370,1755034277474,-400.0,0.00049589,120]
[378816371,1755034277484,-400.0,0.00049589,3]
[378816372,1755034277493,-1398.14,0.00049589,120]
[378816373,1755034277504,-1155.31,0.00049589,120]
[378816374,1755034277513,-400.0,0.00049589,120]
[378816375,1755034277522,-537.28,0.00049589,118]
[378816376,1755034277531,-400.0,0.00049589,120]
[378816377,1755034277540,-400.0,0.00049589,2]
[378816378,1755034277550,-174.27826026,0.00049589,120]
[378816379,1755034277560,-1712.35,0.00049589,120]
[378816380,1755034277570,-1046.2,0.00049589,120]
[378816381,1755034277579,-874.49,0.00049589,120]
[378816382,1755034277589,-400.0,0.00049589,120]
[378816383,1755034277599,-151.0,0.00049589,120]
[378816384,1755034277608,-400.0,0.00049589,120]
[378816385,1755034277618,-400.0,0.00049589,120]
[378816386,1755034277627,-400.0,0.00049589,120]